Cogmind - Beta 16.1 @@@ ROGUE MODE // 2026.01.24 @ 20:16:45 Player: cptwinky Result: Destroyed by S-43 Plague with Heavy Machine Gun Performance ------------- Evolutions (9) 4500 Regions Visited (25) 5000 Robots Destroyed (352) 1760 Value Destroyed (14893) 14893 Prototype IDs (68) 1360 Alien Tech Used (0) 0 Bonus (6043) 6043 TOTAL SCORE: 33556 Bonus ------- High Alert Combat Kills 334 Follower Combat Kills 1141 Hunted by Unchained 500 Entered Garrisons 200 Used RIF Installer 500 Network Hubs Disabled 200 Aligned with FarCom 300 Built Enhanced Grunts 300 A7 Reached Mainframe 300 Met R17 at Cetus 500 Met R17 at Research 2000 Friendly Fire -232 Cogmind --------- Core Integrity 0/1600 Matter 125/300 Energy 54/100 System Corruption 5% Temperature Cool (28) Movement Core (100) Ox1 Location -1/Access Parts ------- > --- POWER (3) -------- (None) > --- PROPULSION (6) --- (None) > --- UTILITY (12) ----- Advanced Targeting Computer > --- WEAPON (4) ------- Railgun > --- INVENTORY (5) ---- Hacking Drone Bay (1/1) Gamma Bomb Array Peak State ------------ > --- POWER ------------ Micro Antimatter Reactor Quantum Reactor Light Quantum Reactor > --- PROPULSION ------- Biometal Leg Biometal Leg Biometal Leg Centrium Leg Centrium Leg Experimental Biometal Leg > --- UTILITY ---------- Advanced Cooling System Advanced Cooling System Advanced Coolant Injector High-capacity Storage Unit Advanced Targeting Computer Advanced Target Analyzer Improved Armor Integrity Analyzer Advanced Transmission Jammer Centrium Medium Armor Plating Centrium Medium Armor Plating Graphene Brace Advanced Remote Force Field > --- WEAPON ----------- Enhanced Nova Cannon Enhanced Nova Cannon Enhanced Hardcell Cannon Enhanced Hardcell Cannon > --- INVENTORY -------- Light Quantum Reactor Centrium Leg Centrium Leg Matter Compressor Triangulator Layered Medium Armor Plating Layered Medium Armor Plating Improved Hacking Suite Advanced Hacking Suite Hacking Drone Bay Guided Plasma Cannon Enhanced Nova Cannon Railgun Advanced KE Penetrator Hypervelocity Railgun Gamma Bomb Array Tiamat Missile Launcher Advanced Micro-nuke Launcher Advanced Remote Datajack Great Maul [Rating: 205] Favorites ----------- Power Enhanced Nuclear Core Engine Improved Ion Engine Power Core Enhanced Nuclear Core Reactor Antimatter Reactor Propulsion Carbon-fiber Leg Treads Light Treads Leg Carbon-fiber Leg Utility Advanced Targeting Computer Device Improved Heat Sink Storage Large Storage Unit Processor Advanced Targeting Computer Hackware Improved Hacking Suite Protection Centrium Medium Armor Plating Weapon Beam Rifle Energy Gun Beam Rifle Energy Cannon Beam Cannon Ballistic Gun Improved Assault Rifle Ballistic Cannon Enhanced Hardcell Cannon Launcher Tiamat Missile Launcher Impact Weapon Great Maul Special Melee Weapon Datajack Build | -11 -10 -10 -9 -9 -9 -8 -8 -8 -7 -7 -7 -7 -6 -6 -6 -6 -6 -6 -6 -6 -5 -4 -3 -2 -1 ------- Run | Yrd Mat Min Mat Min Exi Min Mat Gar Fac Low Low Zio Pro Fac Was Fac Ext Cet Arc Hub Fac Fac Res Res Acc Slots Evolved 18 | . . . 2 . . . 2 . 2 . . . . 2 . . . . . . 2 2 2 2 2 Power 2 | . . . . . . . . . . . . . . 1 . . . . . . . . . 1 . Propulsion 4 | . . . 1 . . . 1 . . . . . . 1 . . . . . . 1 . . . . Utility 10 | . . . 1 . . . . . 2 . . . . . . . . . . . 1 2 1 1 2 Weapon 2 | . . . . . . . 1 . . . . . . . . . . . . . . . 1 . . Parts Attached 257 | 6 6 . 20 . 1 . 21 5 30 2 3 1 3 10 1 14 25 9 7 8 4 7 26 9 39 Power 34 | 1 1 . 3 . . . 1 . 4 . . . . 2 . 2 3 1 1 1 2 1 3 3 5 Engine 15 | 1 1 . 3 . . . 1 . 3 . . . . 1 . . 3 1 1 . . . . . . Core 6 | . . . . . . . . . 1 . . . . 1 . 2 . . . . 2 . . . . Reactor 13 | . . . . . . . . . . . . . . . . . . . . 1 . 1 3 3 5 Propulsion 73 | 2 . . 8 . . . 9 1 8 1 1 . . 4 . 4 6 3 1 4 . . 7 3 11 Treads 14 | 2 . . 8 . . . 3 . . . 1 . . . . . . . . . . . . . . Leg 59 | . . . . . . . 6 1 8 1 . . . 4 . 4 6 3 1 4 . . 7 3 11 Wheel . | . . . . . . . . . . . . . . . . . . . . . . . . . . Hover . | . . . . . . . . . . . . . . . . . . . . . . . . . . Flight . | . . . . . . . . . . . . . . . . . . . . . . . . . . Utility 85 | 1 3 . 5 . . . 4 3 7 1 1 1 1 2 1 6 9 3 5 2 2 5 9 . 14 Device 48 | . 1 . 2 . . . 2 1 2 1 1 . . 2 . 3 9 . 2 1 1 5 8 . 7 Storage 5 | 1 2 . . . . . . . . . . . . . . 2 . . . . . . . . . Processor 7 | . . . . . . . . . 1 . . . . . 1 . . . . . 1 . 1 . 3 Hackware 6 | . . . . . . . . . 2 . . . . . . . . . 2 1 . . . . 1 Protection 19 | . . . 3 . . . 2 2 2 . . 1 1 . . 1 . 3 1 . . . . . 3 Artifact . | . . . . . . . . . . . . . . . . . . . . . . . . . . Weapon 65 | 2 2 . 4 . 1 . 7 1 11 . 1 . 2 2 . 2 7 2 . 1 . 1 7 3 9 Energy Gun 32 | 1 . . 1 . . . 6 . 6 . 1 . 2 2 . 2 4 1 . . . 1 3 2 . Energy Cannon 8 | . 2 . . . . . . . 1 . . . . . . . . . . . . . 2 . 3 Ballistic Gun 9 | 1 . . 2 . . . . . . . . . . . . . 1 1 . . . . 1 . 3 Ballistic Cannon 3 | . . . . . . . . . 1 . . . . . . . . . . . . . . 1 1 Launcher 9 | . . . 1 . . . . 1 2 . . . . . . . 2 . . . . . 1 . 2 Special Weapon . | . . . . . . . . . . . . . . . . . . . . . . . . . . Impact Weapon 1 | . . . . . . . 1 . . . . . . . . . . . . . . . . . . Slashing Weapon . | . . . . . . . . . . . . . . . . . . . . . . . . . . Piercing Weapon . | . . . . . . . . . . . . . . . . . . . . . . . . . . Special Melee Weapon 3 | . . . . . 1 . . . 1 . . . . . . . . . . 1 . . . . . Unidentified Prototypes 18 | . . . 3 . . . . . 6 . . . . 1 . 2 . 3 . . . . 2 . 1 Corrupted Parts 2 | . . . . . . . . . . . . . . . . . . . . 2 . . . . . System Corruption 12 | . . . . . . . . . . . . . . . . . . . . 12 . . . . . Parts Lost 64 | . 1 . . . . . 1 3 . . 1 . 3 . 1 2 7 . . . 1 3 7 4 30 Power 9 | . 1 . . . . . . 1 . . . . . . . . 1 . . . . . . 2 4 Propulsion 14 | . . . . . . . . 2 . . . . . . . 1 1 . . . . 1 1 1 7 Utility 26 | . . . . . . . 1 . . . . . 2 . 1 . 4 . . . . 1 3 . 14 Weapon 15 | . . . . . . . . . . . 1 . 1 . . 1 1 . . . 1 1 3 1 5 Highest Loss Streak 23 | . 1 . . . . . 1 2 . . 1 . 2 . 1 1 2 . . . 1 3 6 4 23 To Critical Strikes . | . . . . . . . . . . . . . . . . . . . . . . . . . . Average Backups 16 | 2 7 14 14 15 15 15 14 14 14 14 14 14 14 13 15 15 18 20 20 20 19 19 19 19 18 Power 1 | . 1 2 1 1 1 1 1 . . 2 2 2 2 1 1 . . . 1 1 1 1 3 2 1 Propulsion 1 | . 1 4 3 3 3 3 1 . . . 1 2 2 1 2 1 3 2 . . . . 2 2 1 Utility 5 | . 2 3 3 4 3 3 4 5 4 4 4 4 3 2 5 5 5 6 7 8 7 9 6 4 5 Weapon 7 | . 2 5 6 6 6 7 7 6 6 7 6 6 5 6 6 7 7 9 10 10 10 7 6 9 9 Tool/Special . | . . . . . . . . . . . . . . . . . . . . . . . . . . Unused Backups 40 | . 2 2 12 2 1 . 3 1 3 . . . . . 1 2 1 . . . 1 . 1 . 8 Power 4 | . 1 . 1 . . . . 1 . . . . . . . . . . . . . . . . 1 Propulsion 6 | . . . 2 . . . 3 . . . . . . . . . . . . . . . . . 1 Utility 15 | . . 1 1 2 1 . . . 2 . . . . . 1 1 1 . . . . . . . 5 Weapon 14 | . 1 1 8 . . . . . 1 . . . . . . 1 . . . . 1 . 1 . . Tool/Special 1 | . . . . . . . . . . . . . . . . . . . . . . . . . 1 Average Slot Usage (%) 96 | . 96 100 99 100 100 100 98 98 97 92 92 82 90 92 91 92 95 100 100 100 93 92 97 99 96 Engine 5 | . 14 14 11 11 11 11 9 9 4 . . . . 5 6 . 2 13 13 13 4 . . . . Core 3 | . . . . . . . . . 2 7 7 7 7 6 6 12 9 . . . 1 8 . . . Reactor 1 | . . . . . . . . . . . . . . . . . . . . . 4 1 8 12 11 Treads 6 | . 27 28 33 33 33 33 17 . . . . . . . . . . . . . . . . . . Leg 21 | . . . . . . . 18 34 27 23 22 23 23 26 26 26 28 33 33 33 29 25 26 26 23 Device 12 | . 11 14 11 11 11 11 8 9 6 14 15 15 13 12 5 5 13 14 10 7 1 18 19 20 25 Storage 7 | . 14 14 11 11 11 11 9 9 7 7 7 7 7 6 6 6 6 6 6 6 5 5 4 4 3 Processor 5 | . . . . . . . . . 7 7 7 7 7 6 12 13 7 6 6 6 10 6 7 8 9 Hackware 1 | . . . . . . . . . 7 . . . . . . . . . 3 7 9 5 4 4 2 Protection 6 | . . . 10 11 11 11 9 9 7 7 7 7 7 6 6 5 3 5 4 4 4 5 4 4 5 Energy Gun 15 | . 10 . 4 . . . 18 26 22 23 21 13 22 20 15 19 19 15 19 19 16 14 8 14 4 Energy Cannon 2 | . 6 28 14 . . . . . . . . . . . . . . . . . . . 2 . 2 Ballistic Gun 2 | . 10 . 2 22 17 22 7 . . . . . . . . . . 3 . . . . 5 2 4 Peak Build Rating 205 | 6 8 8 19 20 20 20 31 34 60 60 62 59 59 67 66 78 80 81 79 84 96 111 142 163 205 Average Rating 67 | 5 7 8 13 19 19 20 25 32 42 57 58 52 56 62 62 71 72 76 77 81 92 106 133 159 185 On Entrance 55 | . 6 8 8 19 20 20 20 31 33 57 59 59 59 53 66 64 73 69 78 79 84 95 104 140 148 Avg Prop Armor Cover (%) 18 | . . . . . . . 7 . . . . . . . . . . . . . . . . . 31 Naked Turns . | . . . . . . . . . . . . . . . . . . . . . . . . . . Heaviest Build 176 | 11 32 32 39 39 39 39 45 58 61 53 57 53 63 77 75 77 79 86 83 78 89 82 118 126 176 Greatest Support 172 | 40 40 40 60 60 60 60 82 60 70 70 70 70 70 85 80 84 84 81 81 112 112 112 145 156 172 Greatest Overweight (x) 1 | . . . . . . . 1 1 . . . . . . . 1 . 1 1 . . . 1 . 1 Average Overweight (x) . | . . . . . . . . . . . . . . . . . . . . . . . . . . Largest Inventory Capacity 20 | 8 15 15 15 15 15 15 15 15 15 15 15 15 15 15 15 20 20 20 20 20 20 20 20 20 20 Average Capacity 16 | 7 10 15 15 15 15 15 15 15 15 15 15 15 15 15 15 16 20 20 20 20 20 20 20 20 19 Most Carried 20 | 5 15 15 15 15 15 15 15 15 15 15 15 15 15 15 15 18 20 20 20 20 20 20 20 20 20 Average Carried 16 | 2 7 14 14 14 14 15 14 14 14 14 14 14 14 13 14 15 18 19 20 20 19 19 19 19 18 Final Capacity 20 | 8 15 15 15 15 15 15 15 15 15 15 15 15 15 15 15 20 20 20 20 20 20 20 20 20 5 Final Carried 20 | 5 15 15 15 15 15 15 15 15 15 15 15 15 15 15 15 17 20 20 20 20 19 19 20 19 2 Class Distribution -------------------- 25% | Scavenger-Skirmisher 14% | Scavenger-Tank 13% | Scientist-Skirmisher 12% | Mutant 10% | Gunner 8% | Scavenger-Mutant 6% | Skirmisher 3% | Scavenger-Gunner Dominant Class ---------------- Mutant | -10/Materials Mutant | -10/Mines Mutant | -9/Materials Scavenger-Mutant | -9/Mines Scavenger-Mutant | -9/Exiles Scavenger-Mutant | -8/Mines Scavenger-Skirmisher | -8/Materials Scavenger-Skirmisher | -8/Garrison Skirmisher | -7/Factory Gunner | -7/Lower Caves Gunner | -7/Lower Caves Gunner | -7/Zion Gunner | -6/Proximity Caves Tank | -6/Factory Scientist-Mutant | -6/Waste Scientist-Skirmisher | -6/Factory Scientist-Skirmisher | -6/Extension Scavenger-Skirmisher | -6/Cetus Scavenger-Skirmisher | -6/Archives Scavenger-Skirmisher | -6/Hub_04(d) Scavenger-Skirmisher | -5/Factory Scavenger-Tank | -4/Factory Scavenger-Gunner | -3/Research Scavenger-Tank | -2/Research Scavenger-Tank | -1/Access Resources | -11 -10 -10 -9 -9 -9 -8 -8 -8 -7 -7 -7 -7 -6 -6 -6 -6 -6 -6 -6 -6 -5 -4 -3 -2 -1 ----------- Run | Yrd Mat Min Mat Min Exi Min Mat Gar Fac Low Low Zio Pro Fac Was Fac Ext Cet Arc Hub Fac Fac Res Res Acc Matter Collected 7960 | 162 251 . 354 . . 40 540 216 621 178 169 109 394 63 . 766 750 228 110 194 143 257 576 133 1706 Remotely . | . . . . . . . . . . . . . . . . . . . . . . . . . . Salvage Created 15047 | 81 360 33 1180 . . . 1437 873 1552 230 218 . 419 337 . 1759 1201 346 104 25 432 572 955 299 2634 Parts 613 | 12 27 3 70 . . . 67 31 67 9 14 . 12 10 . 65 31 19 6 2 17 8 21 3 119 Haulers Intercepted 21 | . 2 . 6 . . . 3 . 3 . . . . . . 2 . . . . 1 . 2 1 1 Recyclers Shooed 12 | . . . 1 . . . . . 4 . . . . . . 3 1 . . . . 1 . . 2 Parts Field Recycled . | . . . . . . . . . . . . . . . . . . . . . . . . . . Retrieved Matter . | . . . . . . . . . . . . . . . . . . . . . . . . . . Parts Self-Destructed 28 | . . . . . . . . . . 8 10 . 10 . . . . . . . . . . . . Prevented . | . . . . . . . . . . . . . . . . . . . . . . . . . . Parts Restored 1 | . . . . . . . . . . . . . . . . . . . . . . . 1 . . Broken 1 | . . . . . . . . . . . . . . . . . . . . . . . 1 . . Kills | -11 -10 -10 -9 -9 -9 -8 -8 -8 -7 -7 -7 -7 -6 -6 -6 -6 -6 -6 -6 -6 -5 -4 -3 -2 -1 ------- Run | Yrd Mat Min Mat Min Exi Min Mat Gar Fac Low Low Zio Pro Fac Was Fac Ext Cet Arc Hub Fac Fac Res Res Acc Combat Hostiles Destroyed 282 | . 6 1 21 . . . 27 23 38 7 9 . 16 6 . 24 24 5 1 . 12 12 12 2 36 Melee 8 | . . . . . . . 4 . . . . . . . . 4 . . . . . . . . . Guns 155 | . 6 . 2 . . . 15 16 23 3 3 . 5 6 . 15 20 3 . . 5 5 11 1 16 Cannons 19 | . . 1 11 . . . . . . . . . . . . . . . . . . . 1 . 6 AOE 74 | . . . 7 . . . 6 5 12 4 6 . 11 . . . 3 . . . 5 2 . . 13 Classes Destroyed 20 | 1 5 1 3 . . . 1 2 3 . 1 . . . . . 1 . . . . . 1 . 1 Worker 15 | . . . 1 . . . 2 . 2 . . . . . . 4 . . . . . . . . 6 Builder 9 | . . 1 1 . . . . . 1 . . . . . . 2 2 . . . . . . . 2 Tunneler 6 | 4 . . . . . . . . . . . . . . . 1 . . . . . . . . 1 Hauler 21 | . 2 . 6 . . . 3 . 3 . . . . . . 2 . . . . 1 . 2 1 1 Recycler 9 | . 1 . 2 . . . 1 . 3 . . . . . . 2 . . . . . . . . . Operator 12 | . 2 . 1 . . . 1 . 1 . . . . . . 2 1 . 1 1 . . . 1 1 Watcher 1 | . . . . . . . . . . . . . . . . . 1 . . . . . . . . Swarmer 79 | . 3 1 7 . . . 3 9 11 4 4 . 9 1 . 3 4 . . . 8 4 1 . 7 Grunt 88 | . 3 . 9 . . . 12 4 14 2 3 . 2 5 . 7 12 . . . . 1 6 . 8 Brawler 4 | . . . . . . . . 1 . . . . 1 . . 1 . . . . . . 1 . . Duelist 5 | . . . 1 . . . . . . 1 . . 2 . . . . . . . . . 1 . . Sentry 35 | . . . 4 . . . 7 7 1 . . . 1 . . 4 4 . 1 . . 2 . . 4 Demolisher 2 | . . . . . . . . . 2 . . . . . . . . . . . . . . . . Specialist 1 | . . . . . . . . 1 . . . . . . . . . . . . . . . . . Hunter 29 | . . . . . . . 5 1 2 . 1 . . . . 3 2 . . . . 2 2 2 9 Programmer 25 | . . . . . . . . . 5 . . . . . . 6 . . . . 4 3 . . 7 Heavy 1 | . . . . . . . . . . . . . . . . . . . . . . . . . 1 Behemoth 4 | . . . . . . . . . . . 1 . 1 . . . 2 . . . . . . . . Cetus Guard 5 | . . . . . . . . . . . . . . . . . . 5 . . . . . . . Executioner 1 | . . . . . . . . . . . . . . . . . . . . . . . 1 . . Assembled 3 | . . . . . . . . . 3 . . . . . . . . . . . . . . . . Best Kill Streak 8 | 2 5 1 7 . . . 7 3 8 4 4 . 6 3 . 4 4 3 1 1 4 4 5 3 8 Combat Bots Only 7 | . 3 1 4 . . . 7 3 4 4 4 . 6 3 . 3 4 3 1 . 4 4 5 2 7 Max Kills in Single Turn 4 | 1 1 1 3 . . . 2 2 4 4 4 . 4 1 . 2 2 2 1 1 2 2 2 1 4 Gunslinging 1 | . . . . . . . . . 1 . 1 . . . . . 1 . . . 1 . 1 . . Exploded 4 | . . . 2 . . . 2 2 3 4 4 . 4 . . . 1 . . . 2 2 . . 3 Melee 1 | . . . . . . . 1 . . . . . . . . 1 . . . . . . . . . Uniques/NPCs Destroyed . | . . . . . . . . . . . . . . . . . . . . . . . . . . Combat | -11 -10 -10 -9 -9 -9 -8 -8 -8 -7 -7 -7 -7 -6 -6 -6 -6 -6 -6 -6 -6 -5 -4 -3 -2 -1 -------- Run | Yrd Mat Min Mat Min Exi Min Mat Gar Fac Low Low Zio Pro Fac Was Fac Ext Cet Arc Hub Fac Fac Res Res Acc Hostile Shots Fired 1820 | . 25 5 81 . . . 75 100 138 16 41 . 58 5 . 156 193 15 . 9 45 79 92 42 645 Missed 609 | . 7 1 22 . . . 18 32 42 3 14 . 17 1 . 68 71 10 . 2 13 35 36 7 210 Hits 1211 | . 18 4 59 . . . 57 68 96 13 27 . 41 4 . 88 122 5 . 7 32 44 56 35 435 Melee 23 | . . . 3 . . . . . 2 5 . . . . . . . . . . . . 5 . 8 Projectile 1188 | . 18 4 56 . . . 57 68 94 8 27 . 41 4 . 88 122 5 . 7 32 44 51 35 427 AOE 10 | . . . . . . . . . 10 . . . . . . . . . . . . . . . . Critical Strikes 54 | . . . 2 . . . 1 3 2 1 . . . . . 2 1 1 . . 1 3 6 1 30 Actively Blocked 22 | . . . . . . . . . . . . . . . . . . . . . . . 3 1 18 Damage Taken 22243 | . 185 32 752 . . . 921 814 1535 310 536 . 664 51 239 892 1584 81 19 149 584 806 1186 1060 9843 Core 2890 | . 43 . 62 . . . 114 110 139 35 113 . 77 . 45 35 157 14 . 38 73 60 111 58 1606 Absorbed by Shields 1620 | . . . . . . . . 51 . . . . . 16 . . 48 53 . . . . 118 271 1063 Ignored by Resistances 197 | . . . . . . . 4 . 145 . . . . 6 . 42 . . . . . . . . . Regen/Repaired (Parts) 1029 | . 109 . . . . . 252 . 187 . . . . . . 57 . . . . . 108 . 316 . Core Remaining (%) 81 | 100 . 82 . . . 84 . 59 . . . . 48 . . . . . . 66 92 94 91 96 . Volleys Fired 683 | 11 22 2 54 . . . 50 62 74 9 13 . 22 7 . 52 62 10 4 3 18 32 30 10 136 Largest 4 | 2 2 2 2 . . . 3 3 3 3 3 . 3 3 . 3 3 3 3 3 3 3 4 4 4 Hottest 356 | 60 120 120 120 . . . 168 168 173 221 240 . 240 240 . 235 240 185 235 235 235 241 285 344 356 Shots Fired 1879 | 22 44 4 103 . . . 131 163 208 25 29 . 50 21 . 160 164 24 11 9 46 89 103 40 433 Gun 1580 | 22 42 . 25 . . . 124 159 200 24 24 . 42 21 . 160 157 21 11 9 42 87 85 40 285 Cannon 238 | . 2 4 73 . . . . . . . . . . . . . 1 . . . . . 16 . 142 Launcher 61 | . . . 5 . . . 7 4 8 1 5 . 8 . . . 6 3 . . 4 2 2 . 6 Special . | . . . . . . . . . . . . . . . . . . . . . . . . . . Kinetic 269 | 11 21 . 2 . . . 12 . . . . . . . . . 3 7 1 . . . 33 . 179 Thermal 1549 | 11 23 4 96 . . . 112 159 200 24 24 . 42 21 . 160 155 14 10 9 42 87 68 40 248 Explosive 58 | . . . 5 . . . 7 4 8 1 5 . 8 . . . 6 . . . 4 2 2 . 6 Electromagnetic 3 | . . . . . . . . . . . . . . . . . . 3 . . . . . . . Robot Hit Streak 39 | 9 7 4 21 . . . 30 39 26 9 16 . 24 32 . 19 26 12 22 3 11 16 16 11 13 Robot Miss Streak 5 | 2 2 . 3 . . . 2 4 2 3 1 . 3 3 . 3 4 1 . 1 2 3 4 4 5 Penetration Max 2 | . . . . . . . . . . . . . . . . . 1 1 . . . . 1 . 2 Secondary Targets 22 | . . . . . . . 1 1 2 1 1 . 1 . . 2 4 . . . 3 1 1 1 3 Max Gunslinging Chain 1 | . . . . . . . 1 1 1 1 1 . 1 . . 1 1 . . . 1 1 1 1 1 Shots Hit Robots 1324 | 13 27 3 68 . 4 . 100 108 153 16 22 1 36 18 . 121 127 19 11 7 34 70 71 27 268 Core Hits 739 | 4 20 2 43 . . . 56 37 90 11 19 . 41 23 . 86 80 9 2 2 16 24 40 10 124 Critical Kills 15 | . 1 . . . . . . . . . . . 1 1 . 2 . 1 1 . . . 2 . 6 Critical Parts Destroyed 23 | . . . . . . . 5 . . 1 . . . . . . 1 1 . . . . 4 . 11 Critical Strikes 108 | . 1 . 4 . . . 10 11 10 3 . . 1 1 . 7 6 2 1 . 5 11 8 3 24 Burn 66 | . . . 4 . . . 5 11 10 2 . . . . . 5 5 . . . 5 11 2 3 3 Destroy 33 | . 1 . . . . . . . . 1 . . 1 1 . . 1 2 1 . . . 6 . 19 Blast 2 | . . . . . . . . . . . . . . . . . . . . . . . . . 2 Smash 7 | . . . . . . . 5 . . . . . . . . 2 . . . . . . . . . Melee Attacks 86 | . . . . . 4 . 16 4 11 . . 1 . 1 12 8 19 1 . 1 . 2 5 . 1 Impact 66 | . . . . . . . 16 4 7 . . . . 1 12 8 10 . . . . 2 5 . 1 Slashing . | . . . . . . . . . . . . . . . . . . . . . . . . . . Piercing . | . . . . . . . . . . . . . . . . . . . . . . . . . . Sneak Attacks 26 | . . . . . 4 . 1 . 4 . . 1 . . . 5 9 1 . 1 . . . . . Combat Hostiles 6 | . . . . . . . 1 . . . . . . . . 5 . . . . . . . . . Follow-up Attacks . | . . . . . . . . . . . . . . . . . . . . . . . . . . Damage Inflicted 41706 | 151 346 68 1795 . . . 2395 1989 4237 696 1524 . 2373 506 . 3676 3821 673 214 154 1258 1966 2303 791 10770 Guns 24089 | 151 315 . 261 . . . 1367 1613 2343 396 575 . 1094 468 . 2849 2870 304 214 123 755 1583 1524 725 4559 Cannons 4549 | . 18 55 927 . . . . . . . . . . . . . 39 . . . . . 329 . 3181 Explosions 11138 | . . . 581 . . . 513 376 1799 300 949 . 1279 . . . 869 369 . . 503 383 394 . 2823 Melee 1035 | . . . . . . . 487 . . . . . . . . 548 . . . . . . . . . Ramming 895 | . 13 13 26 . . . 28 . 95 . . . . 38 . 279 43 . . 31 . . 56 66 207 Kinetic 3667 | 63 139 . 34 . . . 129 . . . . . . . . . 15 43 8 . . . 646 . 2590 Thermal 25496 | 88 194 55 1154 . . . 1238 1613 2343 396 575 . 1094 468 . 2849 2894 261 206 123 755 1583 1207 725 5675 Explosive 10244 | . . . 581 . . . 513 376 1799 300 949 . 1279 . . . 869 . . . 503 383 394 . 2298 Electromagnetic 369 | . . . . . . . . . . . . . . . . . . 369 . . . . . . . Impact 1035 | . . . . . . . 487 . . . . . . . . 548 . . . . . . . . . Slashing . | . . . . . . . . . . . . . . . . . . . . . . . . . . Piercing . | . . . . . . . . . . . . . . . . . . . . . . . . . . Highest Corruption 12 | . . . . . . . . . 6 6 6 6 . . 9 10 8 8 8 12 2 3 . 1 5 Average Corruption 5 | . . . . . . . . . 4 6 6 6 . . 7 6 7 8 5 10 1 2 . 1 2 Corruption Purged 27 | . . . . . . . . . . . . . . . . 12 3 . 8 . . . . . 4 Corruption Blocked . | . . . . . . . . . . . . . . . . . . . . . . . . . . Effects 215 | . . . . . . . . . 33 23 10 2 . . 2 50 36 10 8 . 1 5 . . 35 Message Errors 55 | . . . . . . . . . 9 8 4 . . . . 14 7 2 1 . . 3 . . 7 Matter Fused 58 | . . . . . . . . . 6 6 2 1 . . 1 14 14 4 1 . . 2 . . 7 Heat Flow Errors 14 | . . . . . . . . . 3 1 1 . . . . 3 1 3 1 . . . . . 1 Energy Discharges 22 | . . . . . . . . . 5 2 . . . . 1 4 3 1 2 . . . . . 4 Parts Rejected 5 | . . . . . . . . . . 1 . . . . . 1 1 . . . . . . . 2 Data Loss (minor) 25 | . . . . . . . . . 5 2 1 1 . . . 5 3 . . . . . . . 8 Data Loss (major) 10 | . . . . . . . . . . 2 1 . . . . 3 . . . . 1 . . . 3 Misfires 12 | . . . . . . . . . 3 1 . . . . . 4 3 . 1 . . . . . . Alerts 9 | . . . . . . . . . 1 . 1 . . . . 2 1 . 2 . . . . . 2 Weapon Failures 5 | . . . . . . . . . 1 . . . . . . . 3 . . . . . . . 1 Overload Shots . | . . . . . . . . . . . . . . . . . . . . . . . . . . Overflow Damage 844 | . . . . . . . 218 . 90 . 59 . 15 . . 63 53 1 . . 63 19 . . 263 Projectiles 127 | . . . . . . . . . . . . . . . . . . . . . . . . . 127 Explosions 353 | . . . . . . . . . 72 . 59 . 15 . . . 41 1 . . 63 19 . . 83 Melee 364 | . . . . . . . 218 . 18 . . . . . . 63 12 . . . . . . . 53 Knockbacks 20 | . . . . . . . 2 . 1 . . . . . . 1 1 . . 1 . . . . 14 Impact 7 | . . . . . . . 2 . 1 . . . . . . 1 1 . . 1 . . . . 1 Kinetic 12 | . . . . . . . . . . . . . . . . . . . . . . . . . 12 Secondary 1 | . . . . . . . . . . . . . . . . . . . . . . . . . 1 Self-Inflicted Damage 292 | . . . 30 . . . 43 16 60 . . . . . . . . . . . . . . . 143 Shots 9 | . . . 2 . . . 2 1 1 . . . . . . . . . . . . . . . 3 Rammed 11 | . 5 2 3 . . . . . . . . . . . . . . . . . . . . . 1 Targets Rammed 55 | . 5 2 3 . . . 3 . 7 . . . . 4 . 14 2 . . 3 . . 2 4 6 Kicked 44 | . . . . . . . 3 . 7 . . . . 4 . 14 2 . . 3 . . 2 4 5 Crushed . | . . . . . . . . . . . . . . . . . . . . . . . . . . Highest Temperature 407 | . 54 60 188 . . . 308 407 243 192 236 . 252 277 . 395 274 221 139 188 314 198 183 234 192 Average Temperature 90 | . 28 30 62 . . . 101 125 89 121 132 . 118 97 . 119 59 58 58 85 121 72 47 100 54 Received Heat Transfer 2873 | . 81 . 198 . . . 234 228 137 45 123 . 99 7 . 132 761 . . 12 . 57 160 . 599 Effects 12 | . . . . . . . 3 . 2 . . . . 1 . 1 5 . . . . . . . . Shutdowns 1 | . . . . . . . . . . . . . . . . 1 . . . . . . . . . Interference 11 | . . . . . . . 3 . 2 . . . . 1 . . 5 . . . . . . . . Siege Activations . | . . . . . . . . . . . . . . . . . . . . . . . . . . Martial Activations . | . . . . . . . . . . . . . . . . . . . . . . . . . . Shielding Activations . | . . . . . . . . . . . . . . . . . . . . . . . . . . Robots Disrupted . | . . . . . . . . . . . . . . . . . . . . . . . . . . Combat Hostiles . | . . . . . . . . . . . . . . . . . . . . . . . . . . Robots Corrupted 6 | . . . . . . . 1 . . . . . . . . 3 . 2 . . . . . . . Combat Hostiles 4 | . . . . . . . 1 . . . . . . . . 1 . 2 . . . . . . . Parts Fried 12 | . . . . . . . 1 . . . . . . . . 10 . . . . . . . . 1 Impact Corruptions 14 | . . . . . . . 5 . 2 . . . . . . 5 1 . . . . . . . 1 Robots Melted 23 | . . . 1 . . . 1 2 3 . . . . . . 4 1 . 1 . 3 5 . 1 1 Combat Hostiles 22 | . . . 1 . . . 1 2 3 . . . . . . 4 1 . 1 . 2 5 . 1 1 Parts Melted 174 | 1 . . 6 . . . 15 15 23 2 5 . 3 2 . 19 14 . 1 . 9 23 7 9 20 Heat Transferred 53519 | 200 437 111 2701 . . . 3515 4810 6253 777 1019 . 2106 985 . 6364 6590 600 500 300 2150 4559 2104 1341 6097 Parts Sabotaged . | . . . . . . . . . . . . . . . . . . . . . . . . . . Parts Stolen . | . . . . . . . . . . . . . . . . . . . . . . . . . . Parts Stripped . | . . . . . . . . . . . . . . . . . . . . . . . . . . Power Chain Reactions . | . . . . . . . . . . . . . . . . . . . . . . . . . . Alert | -11 -10 -10 -9 -9 -9 -8 -8 -8 -7 -7 -7 -7 -6 -6 -6 -6 -6 -6 -6 -6 -5 -4 -3 -2 -1 ------- Run | Yrd Mat Min Mat Min Exi Min Mat Gar Fac Low Low Zio Pro Fac Was Fac Ext Cet Arc Hub Fac Fac Res Res Acc Maximum Alert Level 3 | . . . 1 . . . 1 3 2 . . . . . . 1 1 1 1 2 2 1 . . 3 Low Security (%) 69 | 100 100 100 71 100 . 100 95 34 36 . . . . 100 100 76 96 22 65 50 . 72 100 100 42 Level 1 22 | . . . 28 . . . 4 23 49 . . . . . . 23 3 77 34 30 71 27 . . 38 Level 2 6 | . . . . . . . . 22 13 . . . . . . . . . . 18 28 . . . 18 Level 3 1 | . . . . . . . . 19 . . . . . . . . . . . . . . . . . Level 4 . | . . . . . . . . . . . . . . . . . . . . . . . . . . Level 5 . | . . . . . . . . . . . . . . . . . . . . . . . . . . High Security . | . . . . . . . . . . . . . . . . . . . . . . . . . . Max Security . | . . . . . . . . . . . . . . . . . . . . . . . . . . Peak Influence 855 | 5 112 50 302 85 . . 282 855 479 . . . . 115 2 300 259 314 277 562 447 232 115 47 713 Initial 448 | . . . . 85 . . . 46 448 . . . . 44 . . 145 143 101 26 264 114 90 41 . Average 144 | . 40 4 108 28 . . 40 379 268 . . . . 49 . 97 89 238 169 242 355 140 47 12 230 Influence Increases 10620 | 20 246 55 700 . . . 857 879 1138 160 220 . 520 133 6 780 821 301 226 729 383 418 387 78 1563 Destroy 0b10 Robot/C 6060 | . 120 20 420 . . . 540 480 700 140 180 . 360 120 . 480 520 160 80 260 240 240 240 40 720 Destroy 0b10 Robot/NC 405 | 20 25 5 55 . . . 35 5 50 . . . . . . 65 20 10 10 25 5 . 10 10 55 Destroy Leader 1226 | . 34 . 122 . . . 176 20 166 20 40 . 50 10 . 134 82 . . 72 42 60 34 12 152 Allied During Kill 718 | . . . . . . . . 5 . . . . 80 . . . 71 127 90 345 . . . . . Successful Hack 345 | . 22 . 22 . . . 25 7 111 . . . . 2 . 54 12 . . . . 68 6 16 . Disable Machine 300 | . 15 . 45 . . . . 30 45 . . . . . . 15 45 . 45 . . . . . 60 Anti-Garrison Action 300 | . . . . . . . . 300 . . . . . . . . . . . . . . . . . Destroy Structure 861 | . . . 36 . . . 36 32 51 . . . . 1 6 2 71 4 1 27 96 50 52 . 396 Partial Spotted 15 | . 15 . . . . . . . . . . . . . . . . . . . . . . . . Lose Combat Pursuer 390 | . 15 30 . . . . 45 . 15 . . . 30 . . 30 . . . . . . 45 . 180 Influence Decreases 9907 | 20 246 55 479 221 . . 785 96 1626 463 245 39 449 204 6 482 863 303 403 265 691 477 487 152 850 Entered New Map 1768 | . . . . 136 . . . 26 407 137 13 39 . 27 . . 153 113 153 51 277 119 84 33 . Time Decay 6212 | 20 236 55 479 85 . . 435 . 634 326 222 . 359 177 5 462 529 170 230 194 254 318 353 119 550 Lost Part 547 | . 10 . . . . . . 30 . . 10 . 30 . 1 20 56 . . . 10 30 50 . 300 Lost Ally 305 | . . . . . . . . 40 10 . . . 60 . . . 125 20 20 20 . 10 . . . Purge Threat 1075 | . . . . . . . 350 . 575 . . . . . . . . . . . 150 . . . . Squads Dispatched 59 | . 1 . 3 1 . . 5 . 9 . . . . 1 . 10 6 . . 4 2 2 1 2 12 Investigation 13 | . . . 1 1 . . 4 . 2 . . . . 1 . 1 2 . . . . 1 . . . Extermination 20 | . . . . . . . . . 4 . . . . . . 5 . . . 1 2 1 1 1 5 Reinforcement 24 | . 1 . 2 . . . 1 . 3 . . . . . . 4 4 . . 3 . . . 1 5 Assault . | . . . . . . . . . . . . . . . . . . . . . . . . . . Garrison 2 | . . . . . . . . . . . . . . . . . . . . . . . . . 2 Intercept . | . . . . . . . . . . . . . . . . . . . . . . . . . . Searches Triggered . | . . . . . . . . . . . . . . . . . . . . . . . . . . Unchained Authorized 2 | . . . . . . . . . . . . . . . . . . . . . . . . 1 1 Construction Impeded 3 | . . . 1 . . . . . . . . . . . . . 2 . . . . . . . . Haulers Reinforced 7 | . . . . . . . . . 2 . . . . . . 2 . . . . . . . . 3 Active Scanning Responses . | . . . . . . . . . . . . . . . . . . . . . . . . . . Cargo Convoy Interrupts 1 | . . . . . . . . . 1 . . . . . . . . . . . . . . . . Stealth | -11 -10 -10 -9 -9 -9 -8 -8 -8 -7 -7 -7 -7 -6 -6 -6 -6 -6 -6 -6 -6 -5 -4 -3 -2 -1 --------- Run | Yrd Mat Min Mat Min Exi Min Mat Gar Fac Low Low Zio Pro Fac Was Fac Ext Cet Arc Hub Fac Fac Res Res Acc Distress Signals 27 | . . . 3 . . . 3 . 1 . . . . 3 . 3 . 2 . 1 . 4 7 . . Communications Jammed 53 | . . . . . . . . . . . . . . . . . . . . . . . 22 1 30 Distress Signals 48 | . . . . . . . . . . . . . . . . . . . . . . . 22 1 25 Times Spotted 409 | . 19 3 33 . . . 31 25 48 6 9 . 16 9 9 30 30 10 5 7 8 18 18 8 67 Peak Tracking Total 18 | . 5 3 6 . . . 3 4 4 4 4 . 6 4 6 3 4 5 1 2 4 4 6 3 18 Tactical Retreats 16 | . 1 1 . . . . 3 . 1 . . . 1 . 1 2 . . . . . . 2 . 4 Traps | -11 -10 -10 -9 -9 -9 -8 -8 -8 -7 -7 -7 -7 -6 -6 -6 -6 -6 -6 -6 -6 -5 -4 -3 -2 -1 ------- Run | Yrd Mat Min Mat Min Exi Min Mat Gar Fac Low Low Zio Pro Fac Was Fac Ext Cet Arc Hub Fac Fac Res Res Acc Traps Triggered 20 | . . . 1 . . . 1 6 2 . . . . 1 . 5 . . . 1 . . 2 . 1 Indirectly . | . . . . . . . . . . . . . . . . . . . . . . . . . . Trap Hack Attempts 50 | . . . . . . . 7 . 26 . . . . . . . . . . . . . 17 . . Triggered . | . . . . . . . . . . . . . . . . . . . . . . . . . . Disarmed 1 | . . . . . . . 1 . . . . . . . . . . . . . . . . . . Reprogrammed 12 | . . . . . . . 2 . 4 . . . . . . . . . . . . . 2 4 . Reused . | . . . . . . . . . . . . . . . . . . . . . . . . . . Traps Extracted . | . . . . . . . . . . . . . . . . . . . . . . . . . . Installed 4 | . . 4 . . . . . . . . . . . . . . . . . . . . . . . Triggered . | . . . . . . . . . . . . . . . . . . . . . . . . . . Machines | -11 -10 -10 -9 -9 -9 -8 -8 -8 -7 -7 -7 -7 -6 -6 -6 -6 -6 -6 -6 -6 -5 -4 -3 -2 -1 ---------- Run | Yrd Mat Min Mat Min Exi Min Mat Gar Fac Low Low Zio Pro Fac Was Fac Ext Cet Arc Hub Fac Fac Res Res Acc Machines Disabled 23 | . 1 . 4 . . . . 4 3 . . . . . . 1 3 . 3 . . . . . 4 Max in Single Turn 2 | . 1 . 2 . . . . 2 1 . . . . . . 1 1 . . . . . . . 1 Garrison Access 7 | . . . . . . . . . 1 . . . . 1 . 2 . . . . . . 1 . 2 Garrison Relay 2 | . . . . . . . . 2 . . . . . . . . . . . . . . . . . Network Hub 1 | . . . . . . . . . . . . . . . . . . . . 1 . . . . . Energy Cycler 1 | . . . . . . . . . . . . . . . . . . . . . . . . . 1 Machines Repaired . | . . . . . . . . . . . . . . . . . . . . . . . . . . Machines Dismantled . | . . . . . . . . . . . . . . . . . . . . . . . . . . Machines Sabotaged . | . . . . . . . . . . . . . . . . . . . . . . . . . . Overloaded Fab Kills . | . . . . . . . . . . . . . . . . . . . . . . . . . . Hacking | -11 -10 -10 -9 -9 -9 -8 -8 -8 -7 -7 -7 -7 -6 -6 -6 -6 -6 -6 -6 -6 -5 -4 -3 -2 -1 --------- Run | Yrd Mat Min Mat Min Exi Min Mat Gar Fac Low Low Zio Pro Fac Was Fac Ext Cet Arc Hub Fac Fac Res Res Acc Machines Accessed 77 | . 3 . 8 1 2 . 13 4 14 1 . . . 2 . 8 5 . . . 1 3 4 3 5 Terminals 37 | . 2 . 7 . . . 9 4 6 . . . . . . 2 4 . . . . 1 . 1 1 Fabricators 5 | . . . . . . . . . 3 . . . . . . 2 . . . . . . . . . Repair Stations 6 | . 1 . . . . . 1 . 1 . . . . . . 1 . . . . . 1 . 1 . Recycling Units 5 | . . . . . . . . . 1 . . . . . . . 1 . . . 1 . 1 . 1 Scanalyzers 12 | . . . 1 . . . 2 . 2 . . . . 1 . 1 . . . . . 1 2 1 1 Garrison Access 8 | . . . . . . . 1 . 1 . . . . 1 . 2 . . . . . . 1 . 2 Total Hacks 220 | . 17 . 21 1 2 . 47 9 41 1 . . . 6 . 15 12 . . . 2 16 7 15 8 Successful 121 | . 10 . 12 1 2 . 27 1 23 1 . . . 6 . 10 2 . . . 1 9 4 8 4 Failed 96 | . 6 . 8 . . . 20 8 18 . . . . . . 5 10 . . . 1 7 2 7 4 Catastrophic 17 | . 1 . 1 . . . 5 1 4 . . . . . . 1 3 . . . . . . . 1 Database Lockouts 3 | . 1 . 1 . . . . . . . . . . . . . . . . . . . 1 . . Manual 57 | . 7 . 10 . 1 . 14 . 14 . . . . . . 3 1 1 . . . 2 . 2 2 Terminals 102 | . 7 . 14 . . . 26 9 20 . . . . . . 2 11 . . . . 4 . 7 2 Fabricators 10 | . . . . . . . . . 7 . . . . . . 3 . . . . . . . . . Repair Stations 32 | . 10 . . . . . 11 . 3 . . . . . . 4 . . . . . 2 . 2 . Recycling Units 7 | . . . . . . . . . 2 . . . . . . . 1 . . . 2 . 1 . 1 Scanalyzers 48 | . . . 7 . . . 7 . 7 . . . . 4 . 2 . . . . . 10 4 6 1 Garrison Access 17 | . . . . . . . 3 . 2 . . . . 2 . 4 . . . . . . 2 . 4 Terminal Hacks 40 | . 3 . 5 1 2 . 12 1 10 1 . . . . . 1 2 . . . . . . 2 . Record 1 | . . . . . 1 . . . . . . . . . . . . . . . . . . . . Part Schematic 1 | . . . . . . . . . 1 . . . . . . . . . . . . . . . . Robot Schematic 1 | . . . . . . . . . 1 . . . . . . . . . . . . . . . . Robot Analysis 4 | . 3 . . . . . 1 . . . . . . . . . . . . . . . . . . Prototype ID Bank 3 | . . . 1 . . . 1 . 1 . . . . . . . . . . . . . . . . Open Door 6 | . . . . 1 . . . 1 . 1 . . . . . 1 2 . . . . . . . . Branch Access Points 2 | . . . 1 . . . . . 1 . . . . . . . . . . . . . . . . Unreport Threat 5 | . . . . . . . 3 . 2 . . . . . . . . . . . . . . . . Locate Traps 6 | . . . 1 . . . 2 . 2 . . . . . . . . . . . . . . 1 . Reprogram Traps 1 | . . . . . . . . . . . . . . . . . . . . . . . . 1 . Security Status 1 | . . . . . . . 1 . . . . . . . . . . . . . . . . . . Hauler Manifests 1 | . . . . . . . 1 . . . . . . . . . . . . . . . . . . Zone Layout 7 | . . . 2 . . . 3 . 2 . . . . . . . . . . . . . . . . Proto ID Catalog 1 | . . . . . 1 . . . . . . . . . . . . . . . . . . . . Fabricator Hacks 1 | . . . . . . . . . . . . . . . . 1 . . . . . . . . . Network Status 1 | . . . . . . . . . . . . . . . . 1 . . . . . . . . . Repair Station Hacks 22 | . 7 . . . . . 9 . 2 . . . . . . 2 . . . . . . . 2 . Scan Component 11 | . 3 . . . . . 5 . 1 . . . . . . 1 . . . . . . . 1 . Repair 10 | . 3 . . . . . 4 . 1 . . . . . . 1 . . . . . . . 1 . Refit 1 | . 1 . . . . . . . . . . . . . . . . . . . . . . . . Recycling Unit Hacks 2 | . . . . . . . . . 1 . . . . . . . . . . . 1 . . . . Retrieve Components 2 | . . . . . . . . . 1 . . . . . . . . . . . 1 . . . . Scanalyzer 32 | . . . 6 . . . 3 . 6 . . . . 4 . 1 . . . . . 7 2 3 . Insert Component 6 | . . . 2 . . . . . 1 . . . . 1 . . . . . . . 2 . . . Analyze 6 | . . . 2 . . . . . 1 . . . . 1 . . . . . . . 2 . . . Retrieve Study 20 | . . . 2 . . . 3 . 4 . . . . 2 . 1 . . . . . 3 2 3 . Garrison Access Hacks 15 | . . . . . . . 1 . 2 . . . . 2 . 4 . . . . . . 2 . 4 Unlock Access 1 | . . . . . . . 1 . . . . . . . . . . . . . . . . . . Seal Access 7 | . . . . . . . . . 1 . . . . 1 . 2 . . . . . . 1 . 2 Coupler Status 7 | . . . . . . . . . 1 . . . . 1 . 2 . . . . . . 1 . 2 Unauthorized Hacks 9 | . . . 1 . . . 2 . 2 . . . . . . 1 . . . . . 2 . 1 . Terminals 6 | . . . 1 . . . 2 . 1 . . . . . . . . . . . . 1 . 1 . Track 1 | . . . . . . . . . . . . . . . . . . . . . . . . 1 . Assimilate 1 | . . . . . . . . . . . . . . . . . . . . . . 1 . . . Botnet 4 | . . . 1 . . . 2 . 1 . . . . . . . . . . . . . . . . Fabricators 2 | . . . . . . . . . 1 . . . . . . 1 . . . . . . . . . Liberate 1 | . . . . . . . . . . . . . . . . 1 . . . . . . . . . Haulers 1 | . . . . . . . . . 1 . . . . . . . . . . . . . . . . Repair Stations 1 | . . . . . . . . . . . . . . . . . . . . . . 1 . . . Patch 1 | . . . . . . . . . . . . . . . . . . . . . . 1 . . . Recycling Units . | . . . . . . . . . . . . . . . . . . . . . . . . . . Scanalyzers . | . . . . . . . . . . . . . . . . . . . . . . . . . . Garrison Access . | . . . . . . . . . . . . . . . . . . . . . . . . . . Data Cores Recovered 4 | . 1 . . . . . 1 . . . . . . . . 1 . . . . . . . 1 . Used 1 | . 1 . . . . . . . . . . . . . . . . . . . . . . . . Hacking Detections 62 | . 3 . 6 . . . 12 4 13 . . . . 2 . 5 5 . . . 1 2 3 1 5 Full Trace Events 11 | . . . . . . . 3 2 2 . . . . 1 . 1 2 . . . . . . . . Feedback Events 1 | . . . . . . . . . . . . . . . . . 1 . . . . . . . . Corruption 1 | . . . . . . . . . . . . . . . . . 1 . . . . . . . . Feedback Blocked . | . . . . . . . . . . . . . . . . . . . . . . . . . . Robot Schematics Acquired 1 | . . . . . . . . . 1 . . . . . . . . . . . . . . . . Robots Built . | . . . . . . . . . . . . . . . . . . . . . . . . . . Authchips . | . . . . . . . . . . . . . . . . . . . . . . . . . . Time . | . . . . . . . . . . . . . . . . . . . . . . . . . . Total Robot Build Rating . | . . . . . . . . . . . . . . . . . . . . . . . . . . Part Schematics Acquired 7 | . . . 2 . . . . . 2 . . . . 1 . . . . . . . 2 . . . Parts Built . | . . . . . . . . . . . . . . . . . . . . . . . . . . Authchips . | . . . . . . . . . . . . . . . . . . . . . . . . . . Time . | . . . . . . . . . . . . . . . . . . . . . . . . . . Total Part Build Rating . | . . . . . . . . . . . . . . . . . . . . . . . . . . Part Studies Acquired 20 | . . . 2 . . . 3 . 4 . . . . 2 . 1 . . . . . 3 2 3 . Parts Repaired 10 | . 3 . . . . . 4 . 1 . . . . . . 1 . . . . . . . 1 . Time 403 | . 84 . . . . . 167 . 22 . . . . . . 22 . . . . . . . 108 . Parts Recycled . | . . . . . . . . . . . . . . . . . . . . . . . . . . Recycled Matter . | . . . . . . . . . . . . . . . . . . . . . . . . . . Retrieved Matter . | . . . . . . . . . . . . . . . . . . . . . . . . . . Retrieved Components 13 | . . . . . . . . . 10 . . . . . . . . . . . 3 . . . . Parts Scanalyzed 6 | . . . 2 . . . . . 1 . . . . 1 . . . . . . . 2 . . . Part Schematics Acquired 6 | . . . 2 . . . . . 1 . . . . 1 . . . . . . . 2 . . . Parts Damaged . | . . . . . . . . . . . . . . . . . . . . . . . . . . Bothacking | -11 -10 -10 -9 -9 -9 -8 -8 -8 -7 -7 -7 -7 -6 -6 -6 -6 -6 -6 -6 -6 -5 -4 -3 -2 -1 ------------ Run | Yrd Mat Min Mat Min Exi Min Mat Gar Fac Low Low Zio Pro Fac Was Fac Ext Cet Arc Hub Fac Fac Res Res Acc Used RIF Installer 1 | . . . . . . . . 1 . . . . . . . . . . . . . . . . . Robots Hacked 10 | . . . . . 4 . . . 2 . . 1 . . . . 1 1 . 1 . . . . . Non-combat 6 | . . . . . 3 . . . 2 . . . . . . . . . . 1 . . . . . Combat 4 | . . . . . 1 . . . . . . 1 . . . . 1 1 . . . . . . . Robot Hacks Applied 12 | . . . . . 4 . . . 4 . . 1 . . . . 1 1 . 1 . . . . . parse_system 7 | . . . . . 4 . . . . . . 1 . . . . 1 1 . . . . . . . generate_echo 1 | . . . . . . . . . 1 . . . . . . . . . . . . . . . . deconstruct_machine 1 | . . . . . . . . . . . . . . . . . . . . 1 . . . . . purge_threat 2 | . . . . . . . . . 2 . . . . . . . . . . . . . . . . formatsys_low 1 | . . . . . . . . . 1 . . . . . . . . . . . . . . . . Relay Couplers Released 12 | . . . . . . . . 7 . . . . . 4 . . . . . . . . . . 1 Machine Destruction 12 | . . . . . . . . 7 . . . . . 4 . . . . . . . . . . 1 Attached 2 | . . . . . . . . . 1 . . . . . . . . . . 1 . . . . . Fabnet Peak Effective % . | . . . . . . . . . . . . . . . . . . . . . . . . . . Robots Rewired 6 | . . . . . . . . . . . . . . . . . 6 . . . . . . . . Allies Hacked . | . . . . . . . . . . . . . . . . . . . . . . . . . . Hacks Repelled . | . . . . . . . . . . . . . . . . . . . . . . . . . . Allies | -11 -10 -10 -9 -9 -9 -8 -8 -8 -7 -7 -7 -7 -6 -6 -6 -6 -6 -6 -6 -6 -5 -4 -3 -2 -1 -------- Run | Yrd Mat Min Mat Min Exi Min Mat Gar Fac Low Low Zio Pro Fac Was Fac Ext Cet Arc Hub Fac Fac Res Res Acc Total Allies 24 | . . . . . . . . 2 1 . . 3 . . . . 12 5 . . . 1 . . . Largest Group 9 | . . . . . . . . 1 1 . . 3 3 . . . 7 9 9 6 . 1 . . . Highest-Rated Group 730 | . . . . . . . . 31 26 . . 69 69 . . . 291 730 727 499 . 26 . . . Highest-Rated Ally 159 | . . . . . . . . 31 26 . . 29 29 . . . 159 159 159 96 . 26 . . . Total Orders 26 | . . . . . . . . . . . . . . 1 . 1 7 1 2 3 3 1 3 1 3 STAY 1 | . . . . . . . . . . . . . . . . . . . 1 . . . . . . FOLLOW 1 | . . . . . . . . . . . . . . . . . . . 1 . . . . . . RETURN 24 | . . . . . . . . . . . . . . 1 . 1 7 1 . 3 3 1 3 1 3 Ally Attacks 189 | . . . . . . . . 10 . . . . 18 . . . 21 34 36 70 . . . . . Total Damage 5067 | . . . . . . . . 169 . . . . 313 . . . 367 881 1293 2044 . . . . . Kills 32 | . . . . . . . . 1 . . . . 2 . . . 2 5 5 17 . . . . . Allies Corrupted 1 | . . . . . . . . . . . . . . . . . . . . 1 . . . . . Allies Melted 1 | . . . . . . . . . . . . . . . . . . . . 1 . . . . . Intel | -11 -10 -10 -9 -9 -9 -8 -8 -8 -7 -7 -7 -7 -6 -6 -6 -6 -6 -6 -6 -6 -5 -4 -3 -2 -1 ------- Run | Yrd Mat Min Mat Min Exi Min Mat Gar Fac Low Low Zio Pro Fac Was Fac Ext Cet Arc Hub Fac Fac Res Res Acc Active Infowar (turns) 2748 | . . . . . . . . . . . . . . . . . . . . . . 67 213 452 2016 Triangulation 712 | . . . . . . . . . . . . . . . . . . . . . . . . . 712 Jamming 2748 | . . . . . . . . . . . . . . . . . . . . . . 67 213 452 2016 Robot Analysis Total 4 | . 3 . . . . . 1 . . . . . . . . . . . . . . . . . . Derelict Logs Recovered 3 | . . 1 . 1 . . . . . . . . 1 . . . . . . . . . . . . Drone Launches 24 | . . . . . . . . . . . . . . 1 . 1 7 1 . 3 3 1 3 1 3 Drone Recoveries 24 | . . . . . . . . . . . . . . 1 . 1 7 1 . 3 3 1 3 1 3 Exploration | -11 -10 -10 -9 -9 -9 -8 -8 -8 -7 -7 -7 -7 -6 -6 -6 -6 -6 -6 -6 -6 -5 -4 -3 -2 -1 ------------- Run | Yrd Mat Min Mat Min Exi Min Mat Gar Fac Low Low Zio Pro Fac Was Fac Ext Cet Arc Hub Fac Fac Res Res Acc Turns Passed 22515 | 167 584 774 1465 280 476 338 1822 1247 2229 724 460 349 903 385 188 2244 1685 349 491 416 556 703 1105 480 2095 Spaces Moved 13250 | 74 242 396 739 173 290 212 827 779 1472 534 319 204 510 231 133 1507 984 152 84 231 378 409 772 332 1266 Core 121 | 2 . . . . . . . . . . . . . . . . . . . . . . . . 119 Treads 2557 | 72 242 396 739 173 290 212 433 . . . . . . . . . . . . . . . . . . Legs 10572 | . . . . . . . 394 779 1472 534 319 204 510 231 133 1507 984 152 84 231 378 409 772 332 1147 Wheels . | . . . . . . . . . . . . . . . . . . . . . . . . . . Hover . | . . . . . . . . . . . . . . . . . . . . . . . . . . Flight . | . . . . . . . . . . . . . . . . . . . . . . . . . . Fastest Speed 50 | 50 160 160 160 160 160 160 105 105 105 128 128 128 128 110 110 110 105 105 105 105 111 111 105 103 50 Average Speed 121 | 157 160 160 160 160 160 160 134 105 114 128 128 128 128 117 110 110 107 170 137 105 111 111 109 105 101 Slowest Speed 232 | 160 160 160 160 160 160 160 232 175 128 128 128 128 128 122 110 194 110 175 175 111 111 112 180 109 176 Overloaded Moves . | . . . . . . . . . . . . . . . . . . . . . . . . . . Propulsion Burnouts . | . . . . . . . . . . . . . . . . . . . . . . . . . . Robots Hopped . | . . . . . . . . . . . . . . . . . . . . . . . . . . Potential Cave-ins 6 | . . . . . . . . . . . . . . . 6 . . . . . . . . . . Cave-ins Triggered 1 | . . . . . . . . . . . . . . . 1 . . . . . . . . . . Exploration Rate (%) 46 | 3 35 97 54 31 70 52 64 78 40 68 60 14 73 6 92 47 85 66 70 18 9 14 21 11 35 Regions Visited 25 Branch Regions 12 Pre-discovered Areas 2 | . . 1 . . 1 . . . . . . . . . . . . . . . . . . . . Known Exits Taken 8 | . . . 1 . . . 1 . 1 . . . . . . . 1 . . 1 1 1 . 1 . Unknown Exits Taken 14 | 1 1 1 . 1 1 1 . . . 1 1 1 1 . . 1 . 1 1 . . . 1 . . Scrap Searched 9 | . . 1 . 1 . 1 . . . 2 3 . 1 . . . . . . . . . . . . Spaces Dug 282 | . . . 13 . . . 12 2 . 21 39 . 79 . 12 1 39 . . . 23 2 14 . 25 Terrain Destroyed 746 | . . . 33 . . . 47 24 48 21 47 . 135 . 12 1 124 . . . 51 27 25 . 151 Melee 25 | . . . . . . . 2 2 . . . . . . 12 1 . . . . . 2 5 . 1 Projectile 67 | . . . . . . . . . . . . . . . . . . . . . . . 8 . 59 AOE 652 | . . . 33 . . . 45 22 48 21 47 . 135 . . . 124 . . . 51 25 12 . 89 Terrain Rammed . | . . . . . . . . . . . . . . . . . . . . . . . . . . Walls Destroyed . | . . . . . . . . . . . . . . . . . . . . . . . . . . Machines Disabled . | . . . . . . . . . . . . . . . . . . . . . . . . . . Actions | -11 -10 -10 -9 -9 -9 -8 -8 -8 -7 -7 -7 -7 -6 -6 -6 -6 -6 -6 -6 -6 -5 -4 -3 -2 -1 --------- Run | Yrd Mat Min Mat Min Exi Min Mat Gar Fac Low Low Zio Pro Fac Was Fac Ext Cet Arc Hub Fac Fac Res Res Acc Total 17957 | 100 392 532 928 177 299 211 1394 1063 1839 552 343 293 709 322 150 1938 1439 219 451 394 474 582 952 436 1768 Wait 2901 | 5 94 125 53 1 . . 411 174 149 . 1 76 166 46 . 296 288 30 345 130 55 113 48 64 231 Move 13227 | 73 241 395 738 172 289 211 827 778 1471 533 318 203 509 231 131 1506 983 151 83 230 377 408 771 332 1266 Hop . | . . . . . . . . . . . . . . . . . . . . . . . . . . Pick Up 170 | 5 15 2 17 2 1 . 14 6 16 1 1 2 2 10 1 9 11 3 2 . 4 4 13 6 23 Fast Attach 125 | 6 2 . 6 . . . 7 1 12 2 1 3 . 1 1 18 11 3 6 4 1 5 16 3 16 Attach 63 | . 2 . 2 . . . 3 2 5 . 1 1 2 3 1 2 7 . . . 2 3 7 5 15 Detach 29 | . 2 . 2 . . . 1 . 2 . 1 1 . . 1 1 2 1 2 . 1 1 5 2 4 Swap 313 | . 4 . 22 . 4 . 35 14 34 6 5 1 8 11 1 15 36 13 4 14 12 9 21 6 38 Drop 228 | . 5 2 31 2 1 . 20 5 30 1 2 5 . 8 1 17 15 7 5 8 4 5 17 5 32 Fire 683 | 11 22 2 54 . . . 50 62 74 9 13 . 22 7 . 52 62 10 4 3 18 32 30 10 136 Melee 86 | . . . . . 4 . 16 4 11 . . 1 . 1 12 8 19 1 . 1 . 2 5 . 1 Ram 1 | . . . . . . . . . . . . . . . . . . . . . . . . . 1 Kick 43 | . . . . . . . 3 . 7 . . . . 4 . 14 2 . . 3 . . 2 3 5 Crush 10 | . 5 2 3 . . . . . . . . . . . . . . . . . . . . . . Escape Stasis 21 | . . . . . . . . 17 . . . . . . 1 . 3 . . . . . . . . Rewire 3 | . . . . . . . . . 2 . . . . . . . . . . 1 . . . . . Trap 54 | . . 4 . . . . 7 . 26 . . . . . . . . . . . . . 17 . . Miscellaneous . | . . . . . . . . . . . . . . . . . . . . . . . . . . Route ------- -11/Scrapyard -10/Materials -10/Mines (discovered 3 exits: *Mat x2 / [*Sub]) -9/Materials (discovered 2 exits: *Min x2) -9/Mines (discovered 2 exits: *Exi / [*Zio]) -9/Exiles -8/Mines -8/Materials (discovered 4 exits: *Fac x2 / [*Sto] / Gar) -8/Garrison (discovered 3 exits: *Fac x3) -7/Factory (discovered 4 exits: *Fac x2 / *Low x2) -7/Lower Caves -7/Lower Caves (discovered 2 exits: *Fac / [*Zio]) -7/Zion -6/Proximity Caves -6/Factory -6/Waste -6/Factory (discovered 2 exits: [*Low] / *Ext) -6/Extension (discovered 2 exits: *Fac / *Cet) -6/Cetus (discovered 2 exits: *Fac / [*Arc]) -6/Archives -6/Hub_04(d) (discovered 4 exits: *Fac x4) -5/Factory (discovered 6 exits: *Fac x4 / Upp x2) -4/Factory (discovered 7 exits: *Res x4 / Upp x2 / Arm) -3/Research (discovered 2 exits: *Res x2) -2/Research -1/Access History --------- Turn | Location | Event 6 | -11/Scrapyard | Discovered new exit (range 15) 168 | -11/Scrapyard | Entered Materials 307 | -10/Materials | Discovered new exit (range 6) 315 | -10/Materials | Build established: Mutant 416 | -10/Materials | Central database locked down 462 | -10/Materials | Repaired Lgt. Treads 488 | -10/Materials | Repaired Lgt. Treads 521 | -10/Materials | Repaired Particle Gun 752 | -10/Materials | Entered Mines 752 | -10/Mines | Discovered new exit (range 10) 823 | -10/Mines | Discovered new exit (range 10) 975 | -10/Mines | A weapon hastily lodged in a ceiling crevice suddenly fell to the ground 999 | -10/Mines | Learned location of Mines (-9) 1310 | -10/Mines | Found a hidden stash of uninstalled traps 1500 | -10/Mines | Discovered new exit (range 5) 1526 | -10/Mines | Entered Materials 1526 | -9/Materials | Evolved 2 slots: Propulsion x1, Utility x1 1853 | -9/Materials | Discovered new exit (range 13) 1975 | -9/Materials | Central database locked down 2466 | -9/Materials | Identified exit to Mines 2835 | -9/Materials | Build established: Scavenger-Mutant 2991 | -9/Materials | Entered Mines 2992 | -9/Mines | A Derelict revealed a hidden shortcut to a safe place 3001 | -9/Mines | Met a Derelict bent on vengeance 3002 | -9/Mines | Learned Materials security intel 3070 | -9/Mines | Met a Derelict shopkeep closing up shop 3099 | -9/Mines | Deemed a non-threat by the Exiles lab entrance 3264 | -9/Mines | Discovered new exit (range 5) 3271 | -9/Mines | Entered Exiles 3311 | -9/Exiles | Met 8R-AWN 3343 | -9/Exiles | Met EX-HEX 3420 | -9/Exiles | Met EX-DEC 3468 | -9/Exiles | Learned location of Zion (-7) 3503 | -9/Exiles | Met EX-BIN 3528 | -9/Exiles | Aligned with FarCom system 3530 | -9/Exiles | Given EX-Vault access code 3571 | -9/Exiles | Opened EX-Vault 3580 | -9/Exiles | Found Gui. Plasma Cannon 3613 | -9/Exiles | Warned to stay clear of 0b10 Research branches 3733 | -9/Exiles | Discovered new exit (range 10) 3747 | -9/Exiles | Left Exiles lab with Gui. Plasma Cannon 3747 | -9/Exiles | Entered Mines 3955 | -8/Mines | Discovered new exit (range 4) 4085 | -8/Mines | Entered Materials 4085 | -8/Materials | Evolved 2 slots: Propulsion x1, Weapon x1 4773 | -8/Materials | Build established: Scavenger-Skirmisher 5042 | -8/Materials | Discovered new exit (range 7) 5125 | -8/Materials | Destroyed 7 combat bots 5239 | -8/Materials | Discovered new exit (range 16) 5546 | -8/Materials | Discovered new exit (range 11) 5625 | -8/Materials | Repaired Broken Carbon-fiber Leg+ 5665 | -8/Materials | Repaired Carbon-fiber Leg+ 5703 | -8/Materials | Repaired Carbon-fiber Leg+ 5741 | -8/Materials | Repaired Carbon-fiber Leg+ 5907 | -8/Materials | Identified exit to Garrison 5907 | -8/Materials | Entered Garrison 5967 | -8/Garrison | Triggered checkpoint 6262 | -8/Garrison | Triggered checkpoint 6482 | -8/Garrison | Installed Relay Interface Framework 6599 | -8/Garrison | Triggered checkpoint 6684 | -8/Garrison | Garrison Relay disabled 6712 | -8/Garrison | Rescued a captive Derelict 6732 | -8/Garrison | Rescued a captive Derelict 6762 | -8/Garrison | Discovered new exit (range 11) 6825 | -8/Garrison | Triggered checkpoint 6838 | -8/Garrison | Triggered checkpoint 6876 | -8/Garrison | Discovered new exit (range 8) 6951 | -8/Garrison | Garrison Relay disabled 7131 | -8/Garrison | Discovered new exit (range 8) 7154 | -8/Garrison | Entered Factory 7154 | -7/Factory | Evolved 2 slots: Utility x2 7238 | -7/Factory | Discovered new exit (range 6) 7345 | -7/Factory | Discovered new exit (range 8) 7490 | -7/Factory | Identified exit to Lower Caves 8163 | -7/Factory | Build established: Skirmisher 8240 | -7/Factory | Assembled infested ambush trap array 9035 | -7/Factory | Cargo convoy interrupted 9097 | -7/Factory | Repaired Imp. Medium Armor Plating 9292 | -7/Factory | Discovered new exit (range 15) 9383 | -7/Factory | Entered Lower Caves 9482 | -7/Lower Caves | Spotted B-75 Beast 9681 | -7/Lower Caves | Build established: Gunner 9831 | -7/Lower Caves | Encountered a Warlord checkpoint 10012 | -7/Lower Caves | Discovered new exit (range 9) 10107 | -7/Lower Caves | Entered another Lower Caves area 10136 | -7/Lower Caves | Discovered new exit (range 14) 10219 | -7/Lower Caves | Encountered a Warlord checkpoint 10293 | -7/Lower Caves | Spotted B-75 Beast 10312 | -7/Lower Caves | Destroyed B-75 Beast 10558 | -7/Lower Caves | Discovered new exit (range 7) 10567 | -7/Lower Caves | Entered Zion 10593 | -7/Zion | Given A8's code to call for help 10625 | -7/Zion | System corruption cleaned by Quarantine Array 10688 | -7/Zion | Given the Hacking Drone Bay 10690 | -7/Zion | Found Prototype Device 10761 | -7/Zion | Discovered new exit (range 16) 10863 | -7/Zion | Gained Derelict followers 10916 | -7/Zion | Entered Proximity Caves 10916 | -6/Proximity Caves | Accompanied by 3 allies 11220 | -6/Proximity Caves | Attracted the attention of an 0b10 checkpoint 11471 | -6/Proximity Caves | Received a Behemoth hack from an annoying Tinkerer 11576 | -6/Proximity Caves | Learned Factory terminal intel 11605 | -6/Proximity Caves | Spotted B-75 Beast 11621 | -6/Proximity Caves | Core integrity fell below 50% 11637 | -6/Proximity Caves | Destroyed B-75 Beast 11790 | -6/Proximity Caves | Discovered new exit (range 12) 11819 | -6/Proximity Caves | Entered Factory 11819 | -6/Factory | Evolved 2 slots: Power x1, Propulsion x1 11820 | -6/Factory | Loaded intel: 27 terminal locations 11821 | -6/Factory | Identified Hacking Drone Bay 12149 | -6/Factory | Build established: Tank 12204 | -6/Factory | Sucked down chute 12204 | -6/Factory | Entered Waste 12219 | -6/Waste | EMP discharged 12230 | -6/Waste | Spotted C-40 Crusher 12232 | -6/Waste | Spotted C-40 Crusher 12232 | -6/Waste | Spotted C-40 Crusher 12264 | -6/Waste | Spotted C-40 Crusher 12299 | -6/Waste | Spotted C-40 Crusher 12319 | -6/Waste | EMP discharged 12336 | -6/Waste | Spotted C-40 Crusher 12355 | -6/Waste | Crushed by falling debris 12379 | -6/Waste | Discovered new exit (range 11) 12390 | -6/Waste | Found Broken Gamma Bomb Array 12392 | -6/Waste | Entered Factory 12597 | -6/Factory | Discovered new exit (range 15) 12702 | -6/Factory | Build established: Scientist-Skirmisher 13228 | -6/Factory | System corruption reached 10% 13382 | -6/Factory | Repaired Imp. Cooling System? 14516 | -6/Factory | Watched by a mysterious "MATRIX" hacker. 14628 | -6/Factory | Discovered new exit (range 9) 14636 | -6/Factory | Entered Extension 15110 | -6/Extension | Identified exit to Cetus 15254 | -6/Extension | Rescued a captive Derelict 15577 | -6/Extension | Spotted B-75 Beast 15596 | -6/Extension | Destroyed B-75 Beast 15623 | -6/Extension | Spotted B-75 Beast 15655 | -6/Extension | Lost 7 allies 15663 | -6/Extension | Destroyed B-75 Beast 15962 | -6/Extension | Build established: Scavenger-Skirmisher 16024 | -6/Extension | Rescued a captive Derelict 16025 | -6/Extension | Rescued a captive Derelict 16079 | -6/Extension | Rescued a captive Derelict 16100 | -6/Extension | Rescued a captive Derelict 16154 | -6/Extension | Rescued A7 16290 | -6/Extension | Discovered new exit (range 10) 16321 | -6/Extension | Entered Cetus 16321 | -6/Cetus | Accompanied by 5 allies (A7) 16326 | -6/Cetus | Acquired a Cetus Manufacturing Module code from A7 16338 | -6/Cetus | Spotted Cetus Guard 16338 | -6/Cetus | Spotted Cetus Guard 16341 | -6/Cetus | Spotted Cetus Guard 16341 | -6/Cetus | Spotted Cetus Guard 16343 | -6/Cetus | Destroyed Cetus Guard 16345 | -6/Cetus | Allies destroyed Cetus Guard 16352 | -6/Cetus | Destroyed Cetus Guard 16352 | -6/Cetus | Destroyed Cetus Guard 16433 | -6/Cetus | Started Cetus Manufacturing Module 16456 | -6/Cetus | Escorted A7 to Cetus Mainframe 16458 | -6/Cetus | Manufactured an Enhanced Grunt 16483 | -6/Cetus | Manufactured an Enhanced Grunt 16491 | -6/Cetus | Discovered new exit (range 15) 16508 | -6/Cetus | Manufactured an Enhanced Grunt 16520 | -6/Cetus | Spotted Cetus Guard 16521 | -6/Cetus | Spotted Cetus Guard 16523 | -6/Cetus | Spotted Cetus Guard 16524 | -6/Cetus | Spotted Cetus Guard 16528 | -6/Cetus | Allies destroyed Cetus Guard 16530 | -6/Cetus | Allies destroyed Cetus Guard 16533 | -6/Cetus | Manufactured an Enhanced Grunt 16533 | -6/Cetus | Destroyed Cetus Guard 16538 | -6/Cetus | Destroyed Cetus Guard 16549 | -6/Cetus | Discovered new exit (range 15) 16558 | -6/Cetus | Manufactured an Enhanced Grunt 16560 | -6/Cetus | Met Revision 17 16670 | -6/Cetus | Entered Archives 16670 | -6/Archives | Accompanied by 9 allies (A7) 16675 | -6/Archives | Received a hacking code to weaken MAIN.C 16738 | -6/Archives | Discovered new exit (range 16) 17161 | -6/Archives | Entered Hub_04(d) 17161 | -6/Hub_04(d) | Accompanied by 6 allies 17236 | -6/Hub_04(d) | Identified exit to Factory 17536 | -6/Hub_04(d) | Network Hub disabled 17568 | -6/Hub_04(d) | Lost 4 allies 17577 | -6/Hub_04(d) | Entered Factory 17577 | -5/Factory | Evolved 2 slots: Propulsion x1, Utility x1 17626 | -5/Factory | Identified exit to Upper Caves 17628 | -5/Factory | Identified exit to Factory 18133 | -5/Factory | Entered another Factory area 18133 | -4/Factory | Evolved 2 slots: Utility x2 18548 | -4/Factory | Build established: Scavenger-Tank 18681 | -4/Factory | Identified exit to Upper Caves 18681 | -4/Factory | Identified exit to Armory 18684 | -4/Factory | Identified exit to Research 18731 | -4/Factory | Lost 3 parts (1n1u1w) 18836 | -4/Factory | Entered Research 18836 | -3/Research | Evolved 2 slots: Utility x1, Weapon x1 19036 | -3/Research | Revision forces began assault on 0b10 19102 | -3/Research | Discovered new exit (range 7) 19149 | -3/Research | Lost 6 parts (1n2u3w) 19159 | -3/Research | Met up with Revision 17++ 19312 | -3/Research | Central database locked down 19329 | -3/Research | Found Prototype Launcher 19329 | -3/Research | Identified Adv. Micro-nuke Launcher 19389 | -3/Research | Build established: Scavenger-Gunner 19411 | -3/Research | Discovered new exit (range 15) 19432 | -3/Research | Found Gamma Bomb Array 19536 | -3/Research | Research terminal network offline 19619 | -3/Research | Spotted Executioner 19619 | -3/Research | Destroyed Executioner 19623 | -3/Research | Spotted Striker 19941 | -3/Research | Entered another Research area 19941 | -2/Research | Evolved 2 slots: Power x1, Utility x1 19965 | -2/Research | Build established: Scavenger-Tank 20118 | -2/Research | Unchained authorized (BL-1NK) 20128 | -2/Research | Repaired Centrium Medium Armor Plating 20158 | -2/Research | Exiles provided nearest exit location to -1/Access 20421 | -2/Research | Entered Access 20421 | -1/Access | Evolved 2 slots: Utility x2 20450 | -1/Access | Lost 4 parts (2p1n1w) 21045 | -1/Access | Unchained authorized (BL-1NK) 22379 | -1/Access | Build established: Scavenger-Gunner 22409 | -1/Access | Garrison activated, responded to threat 22449 | -1/Access | Destroyed 7 combat bots 22467 | -1/Access | Core integrity fell below 50% 22498 | -1/Access | Core integrity fell below 20% 22514 | -1/Access | Energy Cycler disabled 22516 | -1/Access | Destroyed by S-43 Plague with Heavy Machine Gun Last Messages --------------- 22471_ Adv. Hacking Suite destroyed. 22472_ Slammed into Y-72 Warden. 22479_ System corrupted: Matter fused (-5). 22482_ ALERT: Potential suspicious activity detected, Programmers report to Access Zone 5I. 22489_ Adv. Target Analyzer destroyed. 22491_ Centrium Leg destroyed. 22493_ Adv. Coolant Injector destroyed. 22513_ S-43 Plague destroyed. 22514_ ALERT: Power surge detected, dispatching additional patrols. 22514_ Energy Cycler explodes. 22514_ S-43 Plague destroyed. 22514_ Destroyed Xenon Bombardment Thruster. 22514_ Sml. Battery melted. 22514_ P-80 Master destroyed. 22514_ Destroyed Xenon Bombardment Thruster. 22514_ S-43 Plague destroyed. 22514_ Enh. Nova Cannon+ destroyed. BL-1NK shrinks and is drawn into a quantum tunnel. Map ----- +----------------------------------------------------+ | #????????????????????????????????????????? | | #????????????????????????????????????????? | | ===#????????????????????????????????????????? | | ===#????????????????????????????????????????? | | ===#????????????????????????????????????????? | | #????????????????????????????????????????? | | #########????????????????????????????????????????? | | ?????????????????????????????????????????????????? | | ?????????????????????????????????????????????????? | | ?????????????????????????????????????????????????? | | ?????????????????????????????????????????????????? | | ?????????????????????????????????????????????????? | | ?????????????????????????????????????????????????? | | ?????????????????????????w???????????????????????? | | ?????????????????????????????????????????????????? | | ?????????????????????????????????????????????????? | | ?????????????????????????????????????????????????? | | ##???????????????????????????????????????????????? | | #???????????????????????????????????????????????? | | #???????????????????????????????????????????????? | | #???????????????????????????????????????????????? | | #???????????????????????????????????????????????? | | #????????????????????????????????w??????????????? | | #???????????????????????????????????????????????? | | ##???######?????############+####????????????????? | | ?????# ??? ## @ #????????????????? | | ?????# ?? ## #????????????????? | | ?????# ? ## [ #????????????????? | | ?????# " ## * ; ??????????????? | | ?????# """ ## % ;##+?????????????? | | ?????# """ ##ss* ;#???????????????? | | ?????# " ## ss;#???????????????? | | ?????# ## s=%= ;#???????????????? | | ?????# ## [%| ##???????????????? | | ?????? ## ! #????????????????? | | ???????? * ??# p #????????????????? | | ?????????? ????# #????????????????? | | ?###########+#############++######???????????????? | | ?# #???????????? | | ?# #???????????? | | ?# #???????????? | | ?# +???????????? | | ?# #???????????? | | ?# #???????????? | | ## #???????????? | | ####### ###+###########???????????? | | #?????# #?????????????????????????? | | #?????# #?????????????????????????? | | #?????# #?????????????????????????? | | #?????# #?????????????????????????? | +----------------------------------------------------+ Best States ------------- Heat Dissipation 114 Coolant Potential 100 Energy Generation 61 Energy Capacity 800 Matter Stores 300 Matter Capacity 300 Sight Range 16 Terrain Scan Density 10 Jamming Range 16 Corruption Containment 12 Armor Coverage 600 Resistance: KI 30 Resistance: TH 20 Phase Shifting 15 Evasion (%) 82 Targeting Accuracy 8 Target Analysis 8 Armor Integrity Analysis 40 Recoil Reduction 4 Offensive Hacking 14 Relay Coupler Types 1 Relay Coupler Value 28 Item Schematics ----------------- Beam Rifle | -9/Materials | Scanalyzed Lgt. Treads | -9/Materials | Scanalyzed Lgt. Armored Exoskeleton | -7/Factory | Scanalyzed KE Penetrator | -7/Factory | Hacked Plasma Rifle | -6/Factory | Scanalyzed Gamma Bomb Array | -4/Factory | Scanalyzed Centrium Medium Armor Plating | -4/Factory | Scanalyzed Robot Schematics ------------------ L-41 Fighter | -7/Factory | Hacked Fabricated ------------ Nothing Repaired ---------- Lgt. Treads | 60% | -10/Materials Lgt. Treads | 80% | -10/Materials Particle Gun | 65% | -10/Materials Carbon-fiber Leg | 32% | -8/Materials | Broken Carbon-fiber Leg | 33% | -8/Materials Carbon-fiber Leg | 43% | -8/Materials Carbon-fiber Leg | 60% | -8/Materials Imp. Medium Armor Plating | 22% | -7/Factory Imp. Cooling System | 18% | -6/Factory Centrium Medium Armor Plating | 47% | -2/Research Studied --------- Wheel | -9/Materials | Hacked Com. Wheel | -9/Materials | Hacked Beam Rifle | -8/Materials | Hacked Aluminum Leg | -8/Materials | Hacked Carbon-fiber Leg | -8/Materials | Hacked Gatling Laser | -7/Factory | Hacked Imp. Carbon-fiber Leg | -7/Factory | Hacked Lgt. Armored Exoskeleton | -7/Factory | Hacked Hvy. Missile Launcher | -7/Factory | Hacked Plasma Rifle | -6/Factory | Hacked Flexi-carbon Leg | -6/Factory | Hacked Arm. Leg | -6/Factory | Hacked Wave Gun | -4/Factory | Hacked Thermic Laser | -4/Factory | Hacked Mic. Fission Core | -4/Factory | Hacked Biometal Leg | -3/Research | Hacked Lgt. Antimatter Reactor | -3/Research | Hacked Enh. Quantum Rifle | -2/Research | Hacked Enh. Nova Cannon | -2/Research | Hacked Enh. Hardcell Cannon | -2/Research | Hacked Alien Tech Used ----------------- None Achievements -------------- None Challenges ------------ None Game ------ Seed SupersonicUltimateRipper Manual? 0 Play Time 02:24:25 Cumulative 2115.9 hours Start 2026.01.24 @ 17:51:34 End 2026.01.24 @ 20:16:45 Sessions 1 Manual Loads 0 Difficulty Rogue Special Mode None Game No. 1351 Rogue 1347 Adventurer 4 Explorer 0 Win Type - Total 294 Types 222/13/22/11/3/1/4/10/5/3 Lore% 98 Gallery% 96 Achievement% 88 Wizard Run 0 Options --------- Layout 2 ASCII 0 Keyboard 1 Movement Vi Keybinds 0 Fullscreen 0 Font 24/Terminus Map View 59x48 Zoom Use 0% Tactical HUD 1 Map Filters NONE Filters NONE Steam 1 RUN: d4336890-d158-4755-85e9-8be4023110ba